bitfinex-derivatives/quotes_BTCF0:USTF0_20250602
["timestamp","ask_amount","ask_price","bid_price","bid_amount"]
[1748857285599,1.07450693,104780.0,104770.0,0.88054524]
[1748857285800,1.03080693,104780.0,104770.0,0.88054524]
[1748857286215,0.7637,104780.0,104770.0,1.02633205]
[1748857286507,1.05913139,104780.0,104770.0,1.02633205]
[1748857287001,0.86834409,104780.0,104770.0,1.02633205]
[1748857287197,1.05913139,104780.0,104770.0,1.02633205]
[1748857289704,1.05913139,104780.0,104770.0,0.88054524]
[1748857289906,1.28123743,104780.0,104770.0,0.88042524]
[1748857290110,1.40814209,104780.0,104770.0,0.88022524]
[1748857290294,1.26235528,104780.0,104770.0,0.88022524]
[1748857290498,1.40814209,104780.0,104770.0,0.88022524]
[1748857290696,1.40814209,104780.0,104770.0,0.88042524]
[1748857291001,1.36584209,104780.0,104770.0,0.88042524]
[1748857291208,1.22005528,104780.0,104770.0,0.88042524]
[1748857291698,1.07330653,104780.0,104770.0,0.88042524]
[1748857291898,1.27890625,104780.0,104770.0,0.88042524]
[1748857294703,1.27890625,104780.0,104770.0,0.88010524]
[1748857295113,1.42469306,104780.0,104770.0,0.88010524]
[1748857296113,1.42469306,104780.0,104770.0,0.31730524]
[1748857296310,1.42469306,104780.0,104770.0,0.88010524]
[1748857297515,1.42469306,104780.0,104770.0,0.42722524]
[1748857297714,1.42469306,104780.0,104770.0,0.88006524]
[1748857298510,1.27890625,104780.0,104770.0,0.88006524]
[1748857298905,1.23760625,104780.0,104770.0,0.88006524]
[1748857299506,1.16128712,104780.0,104770.0,1.02585205]
[1748857300017,0.92719972,104780.0,104770.0,1.02585205]
[1748857300420,0.56639972,104780.0,104770.0,1.02585205]
[1748857300616,0.39638702,104780.0,104770.0,1.02585205]
[1748857301115,0.14702542,104790.0,104780.0,0.0476928]
[1748857301309,0.14702542,104790.0,104780.0,1.30382921]
[1748857301508,0.14702542,104790.0,104780.0,0.9222989]
[1748857301709,0.26461128,104790.0,104780.0,1.1242189]
[1748857302011,0.11758586,104790.0,104780.0,1.1242189]
[1748857302521,0.11758586,104790.0,104780.0,1.1244189]
[1748857303006,0.11758586,104790.0,104780.0,1.1284189]
[1748857303206,0.11758586,104790.0,104780.0,1.1314189]
[1748857303515,0.11758586,104790.0,104780.0,1.4912189]
[1748857304617,0.11758586,104790.0,104780.0,1.4911389]
[1748857306221,0.11772887,104800.0,104790.0,0.1907694]
[1748857306416,0.11772887,104800.0,104790.0,0.45825621]
[1748857307713,0.30848007,104800.0,104790.0,0.45925621]
[1748857307917,0.66928007,104800.0,104790.0,1.02181621]
[1748857308116,0.75038007,104800.0,104790.0,0.8760294]
[1748857308311,0.75038007,104800.0,104790.0,0.8772294]
[1748857310523,0.75038007,104800.0,104790.0,0.8771494]
[1748857310725,0.63279421,104800.0,104790.0,1.02293621]
[1748857310915,0.82291963,104800.0,104790.0,1.02293621]
[1748857311114,0.82291963,104800.0,104790.0,0.8771494]
[1748857315316,0.82291963,104800.0,104790.0,0.8770694]
[1748857319533,0.82291963,104800.0,104790.0,1.02285621]
[1748857321834,0.82291963,104800.0,104790.0,1.02273621]
[1748857323122,0.82291963,104800.0,104790.0,0.8769494]
[1748857324035,0.82291963,104800.0,104790.0,0.8766294]
[1748857324232,0.82291963,104800.0,104790.0,0.4243094]
[1748857324432,0.82291963,104800.0,104790.0,0.8766294]
[1748857325828,0.82291963,104800.0,104790.0,1.02241621]
[1748857326031,0.82291963,104800.0,104790.0,0.94207621]
[1748857326423,0.82291963,104800.0,104790.0,0.1929694]
[1748857326624,0.82291963,104800.0,104790.0,0.7546894]
[1748857326625,0.89800025,104800.0,104790.0,0.7546894]
[1748857326922,0.89800025,104800.0,104790.0,0.7548894]
[1748857327119,1.04502567,104800.0,104790.0,0.7546894]
[1748857327325,0.89800025,104800.0,104790.0,0.7548894]
[1748857327522,0.89800025,104800.0,104790.0,0.7548494]
[1748857327727,1.10339587,104800.0,104790.0,0.7548494]
[1748857328933,0.89800025,104800.0,104790.0,0.7548494]
[1748857329133,1.10339587,104800.0,104790.0,0.7548494]
[1748857329935,1.10339587,104800.0,104790.0,0.7548094]
[1748857330330,1.10339587,104800.0,104790.0,0.1929693]
[1748857330531,1.20339587,104800.0,104790.0,0.11164]
[1748857330737,1.20339587,104800.0,104790.0,0.56404]
[1748857331125,0.99800025,104800.0,104790.0,0.56404]
[1748857331532,0.99800025,104800.0,104790.0,0.11164]
[1748857331740,0.99800025,104800.0,104790.0,0.564]
[1748857331932,0.99800025,104800.0,104790.0,0.0022]
[1748857332127,1.23921106,104800.0,104790.0,0.05501965]
[1748857332442,1.28921106,104800.0,104790.0,0.50717965]
[1748857332738,1.28921106,104800.0,104790.0,0.05501965]
[1748857332943,1.28921106,104800.0,104790.0,0.50717965]
[1748857333148,0.99963744,104800.0,104790.0,0.50717965]
[1748857333439,1.14542425,104800.0,104790.0,0.50737965]
[1748857333835,1.14642425,104800.0,104790.0,0.10984]
[1748857334041,1.15042425,104800.0,104790.0,0.11084]
[1748857334926,1.44514771,104800.0,104790.0,0.11084]
[1748857335129,1.15042425,104800.0,104790.0,0.11084]
[1748857335329,1.15142425,104800.0,104790.0,0.11084]
[1748857335525,1.29721106,104800.0,104790.0,0.001]
[1748857335740,1.44614771,104800.0,104790.0,0.001]
[1748857336331,1.59193452,104800.0,104790.0,0.001]
[1748857336835,1.44614771,104800.0,104790.0,0.001]
[1748857337140,1.15142425,104800.0,104790.0,0.001]
[1748857337837,1.29721106,104800.0,104790.0,0.001]
[1748857338027,1.29721106,104800.0,104790.0,0.0012]
[1748857339743,1.15142425,104800.0,104790.0,0.0012]
[1748857342539,1.05600025,104800.0,104790.0,0.0012]
[1748857343137,1.05600025,104800.0,104790.0,0.00081094]
[1748857344044,0.91021344,104800.0,104790.0,0.00081094]
[1748857344240,0.90600025,104800.0,104790.0,0.00081094]
[1748857344449,1.00600025,104800.0,104790.0,0.00081094]
[1748857345238,1.29946725,104800.0,104790.0,0.00081094]
[1748857346041,1.00600025,104800.0,104790.0,0.00081094]
[1748857347647,1.00600025,104800.0,104790.0,0.00043715]
[1748857349845,1.29948745,104800.0,104790.0,0.00043715]
[1748857352054,1.00600025,104800.0,104790.0,0.00043715]
[1748857353253,0.26708773,104790.0,104780.0,0.13532928]
[1748857353555,1.15021842,104790.0,104780.0,0.13532928]
[1748857354348,1.15021842,104790.0,104780.0,0.59758]
[1748857354559,0.94767454,104790.0,104780.0,0.59758]
[1748857354759,0.95067454,104790.0,104780.0,0.59758]
[1748857355555,0.96011805,104790.0,104780.0,0.59758]
[1748857355753,0.99421805,104790.0,104780.0,0.63338]
[1748857357564,0.99421805,104790.0,104780.0,0.65276198]
[1748857357763,1.28770525,104790.0,104780.0,0.65276198]
[1748857358162,1.24416174,104790.0,104780.0,0.65276198]
[1748857358765,1.14416174,104790.0,104780.0,0.65276198]
[1748857359268,0.81407454,104790.0,104780.0,0.65276198]
[1748857360959,0.81407454,104790.0,104780.0,0.84354888]
[1748857361159,0.81407454,104790.0,104780.0,0.65276198]
[1748857361963,0.81407454,104790.0,104780.0,0.84354888]
[1748857362164,0.81407454,104790.0,104780.0,0.65276198]
[1748857362569,0.81407454,104790.0,104780.0,0.84354888]
[1748857362771,0.81407454,104790.0,104780.0,0.65276198]
[1748857363770,0.81407454,104790.0,104780.0,0.09148198]
[1748857363958,0.81407454,104790.0,104780.0,0.65260198]
[1748857365670,0.85147454,104790.0,104780.0,0.65260198]
[1748857366472,0.85147454,104790.0,104780.0,0.21156888]
[1748857366672,1.13076135,104790.0,104780.0,0.58186198]
[1748857366971,0.98497454,104790.0,104780.0,0.57067107]
[1748857367177,0.98497454,104790.0,104780.0,0.60397107]
[1748857368473,1.27846174,104790.0,104780.0,0.60397107]
[1748857368666,0.8854557,104790.0,104780.0,0.79475777]
[1748857368871,0.96177493,104790.0,104780.0,0.82745777]
[1748857369069,1.10756174,104790.0,104780.0,0.82745777]
[1748857369467,1.09162696,104790.0,104780.0,0.82745777]
[1748857369670,1.05722716,104790.0,104780.0,0.97324458]
[1748857370180,0.5575687,104790.0,104780.0,0.97324458]
[1748857370581,0.76066263,104790.0,104780.0,0.97324458]
[1748857370976,0.5545687,104790.0,104780.0,0.82745777]
[1748857371578,0.76061498,104790.0,104780.0,0.82745777]
[1748857371781,0.70035551,104790.0,104780.0,0.82737777]
[1748857371979,0.73505551,104790.0,104780.0,0.82737777]
[1748857372186,0.73505551,104790.0,104780.0,0.82757777]
[1748857372385,0.73305551,104790.0,104780.0,0.82857777]
[1748857373284,0.73405551,104790.0,104780.0,0.82757777]
[1748857373986,0.5535687,104790.0,104780.0,0.82757777]
[1748857376075,0.75953291,104790.0,104780.0,0.26657777]
[1748857376280,0.75953291,104790.0,104780.0,0.82749777]
[1748857380292,0.75953291,104790.0,104780.0,0.26657777]
[1748857380489,0.75953291,104790.0,104780.0,0.82741777]
[1748857380490,0.93961972,104790.0,104780.0,0.82741777]
[1748857381083,0.97291972,104790.0,104780.0,0.82741777]
[1748857381279,0.97291972,104790.0,104780.0,0.26657777]
[1748857381477,0.97291972,104790.0,104780.0,0.82737777]
[1748857382689,0.76695551,104790.0,104780.0,0.82737777]
[1748857383281,0.73365551,104790.0,104780.0,0.82737777]
[1748857383793,0.5878687,104790.0,104780.0,0.82737777]
[1748857384092,0.5878687,104790.0,104780.0,0.82733777]
[1748857384285,0.6214687,104790.0,104780.0,0.82733777]
[1748857385795,0.76725551,104790.0,104780.0,0.82733777]
[1748857386593,0.6214687,104790.0,104780.0,0.82733777]
[1748857387594,0.6214687,104790.0,104780.0,0.82693777]
[1748857387995,0.7684545,104790.0,104780.0,0.82693777]
[1748857389495,0.7348545,104790.0,104780.0,0.82693777]
[1748857390198,0.7348545,104790.0,104780.0,0.82689777]
[1748857390496,0.99026054,104790.0,104780.0,0.15217107]
[1748857390690,1.16854735,104790.0,104780.0,0.56032]
[1748857390890,1.02156155,104790.0,104780.0,0.56052]
[1748857391191,1.22752576,104790.0,104780.0,0.56032]
[1748857391383,1.32752576,104790.0,104780.0,0.56052]
[1748857391988,1.12156155,104790.0,104780.0,0.56052]
[1748857392395,1.41504875,104790.0,104780.0,0.56052]
[1748857394004,1.31504875,104790.0,104780.0,0.56052]
[1748857394297,1.41504875,104790.0,104780.0,0.56052]
[1748857395001,1.41504875,104790.0,104780.0,0.56044]
[1748857396711,1.26926194,104790.0,104780.0,0.56044]
[1748857397002,1.26926194,104790.0,104780.0,0.54492188]
[1748857397906,1.26926194,104790.0,104780.0,0.73570718]
[1748857398202,1.16926194,104790.0,104780.0,0.73570718]
[1748857398402,1.16926194,104790.0,104780.0,0.80540718]
[1748857398809,0.87577474,104790.0,104780.0,0.80540718]
[1748857399003,0.87577474,104790.0,104780.0,0.83880718]
[1748857399303,0.6211687,104790.0,104780.0,0.83880718]
[1748857399500,0.5878668,104790.0,104780.0,0.99983211]
[1748857400205,0.5878668,104790.0,104780.0,0.8540453]
[1748857400392,0.84427284,104790.0,104780.0,0.0697]
[1748857400596,0.99005965,104790.0,104780.0,0.56036]
[1748857400792,1.02465965,104790.0,104780.0,0.56036]
[1748857401100,1.02465965,104790.0,104780.0,0.56016]
[1748857401401,1.12465965,104790.0,104780.0,0.56036]
[1748857401701,1.41814685,104790.0,104780.0,0.56036]
[1748857401900,1.12465965,104790.0,104780.0,0.56036]
[1748857402898,0.97887284,104790.0,104780.0,0.56036]
[1748857403097,0.87887284,104790.0,104780.0,0.56036]
[1748857403813,0.87887284,104790.0,104780.0,0.0002]
[1748857404108,0.87887284,104790.0,104780.0,0.56032]
[1748857404307,0.97887284,104790.0,104780.0,0.0002]
[1748857404503,1.12465965,104790.0,104780.0,0.56028]
[1748857405906,1.12465965,104790.0,104780.0,0.0002]
[1748857406107,1.12465965,104790.0,104780.0,0.56028]
[1748857406608,0.93389285,104790.0,104770.0,1.08516284]
[1748857406908,0.93389285,104790.0,104750.0,0.2385405]
[1748857406909,0.1908222,104760.0,104750.0,0.2385405]
[1748857407097,0.7749027,104760.0,104750.0,0.8997205]
[1748857407299,0.8439027,104760.0,104750.0,0.8999205]
[1748857408011,0.76858347,104760.0,104750.0,0.8998805]
[1748857408499,0.76858347,104760.0,104750.0,0.8999205]
[1748857409598,0.76958347,104760.0,104750.0,0.8999205]
[1748857410903,0.80358347,104760.0,104750.0,0.8999205]
[1748857411103,0.80358347,104760.0,104750.0,0.3398405]
[1748857411606,0.80358347,104760.0,104750.0,0.8998805]
[1748857412107,0.6226222,104760.0,104750.0,0.8998805]
[1748857412310,0.6226222,104760.0,104750.0,0.3398405]
[1748857412697,0.6226222,104760.0,104750.0,0.8998805]
[1748857413710,0.69894143,104760.0,104750.0,0.8998805]
[1748857414611,0.8459027,104760.0,104750.0,0.8998805]
[1748857415104,0.8112027,104760.0,104750.0,0.8998805]
[1748857415311,0.8112027,104760.0,104750.0,1.04566731]
[1748857415810,0.73488347,104760.0,104750.0,1.04566731]
[1748857416310,0.73488347,104760.0,104750.0,0.48562731]
[1748857416505,0.73488347,104760.0,104750.0,1.04534731]
[1748857418905,0.73488347,104760.0,104750.0,1.04530731]
[1748857419813,0.73488347,104760.0,104750.0,0.8995205]
[1748857420213,0.73488347,104760.0,104750.0,1.04530731]
[1748857422809,0.73488347,104760.0,104750.0,0.8995205]
[1748857423014,0.73488347,104760.0,104750.0,1.04530731]
[1748857423810,0.73488347,104760.0,104750.0,0.8995205]
[1748857424008,0.73488347,104760.0,104750.0,1.04530731]
[1748857424808,0.73488347,104760.0,104750.0,0.8995205]
[1748857425325,0.5879222,104760.0,104750.0,0.8995205]
[1748857425523,0.6204222,104760.0,104750.0,0.8995205]
[1748857425820,0.76620901,104760.0,104750.0,0.8995205]
[1748857426211,0.91317028,104760.0,104750.0,0.8995205]
[1748857427616,0.76738347,104760.0,104750.0,0.8995205]
[1748857429219,0.91317028,104760.0,104750.0,0.1013]
[1748857429424,0.98948951,104760.0,104750.0,0.8180601]
[1748857429619,0.1908401,104750.0,104740.0,1.41626997]
[1748857429925,0.1908401,104750.0,104740.0,2.04508997]
[1748857429926,0.84157859,104750.0,104740.0,2.04508997]
[1748857430313,0.84157859,104750.0,104740.0,2.04528997]
[1748857430719,0.69461732,104750.0,104740.0,2.04628997]
[1748857430919,0.69461732,104750.0,104740.0,2.19207678]
[1748857431120,0.84157859,104750.0,104740.0,2.19207678]
[1748857432623,0.84157859,104750.0,104740.0,2.19307678]
[1748857433528,0.80987859,104750.0,104740.0,2.19107678]
[1748857433721,0.81087859,104750.0,104740.0,2.19107678]
[1748857434730,0.84337859,104750.0,104740.0,2.19107678]
[1748857435331,0.69641732,104750.0,104740.0,2.19107678]
[1748857436530,0.90217293,104750.0,104740.0,2.19107678]
[1748857439441,1.04919354,104750.0,104740.0,2.00982997]
[1748857439633,0.87743793,104750.0,104740.0,2.00982997]
[1748857439833,1.09954397,104750.0,104740.0,1.55930997]
[1748857440033,1.09954397,104750.0,104740.0,2.00962997]
[1748857440034,1.15827897,104750.0,104740.0,2.00962997]
[1748857440343,1.15827897,104750.0,104740.0,2.00982997]
[1748857440539,1.15827897,104750.0,104740.0,1.43270184]
[1748857440842,1.15827897,104750.0,104740.0,1.88322184]
[1748857441142,1.09952562,104750.0,104740.0,1.88302184]
[1748857441330,1.09952562,104750.0,104740.0,1.88322184]
[1748857441936,1.09952562,104750.0,104740.0,1.95092184]
[1748857442135,0.95252336,104750.0,104740.0,0.00230044]
[1748857442343,1.05252336,104750.0,104740.0,0.11114044]
[1748857442537,1.25827897,104750.0,104740.0,0.56162044]
[1748857442847,0.1908953,104720.0,104710.0,0.78362654]
[1748857443041,0.1908953,104720.0,104710.0,0.89208905]
[1748857443042,1.13460134,104720.0,104710.0,0.89208905]
[1748857443238,1.12538211,104720.0,104710.0,0.89208905]
[1748857443639,1.12538211,104720.0,104710.0,0.89228905]
[1748857443844,1.27233374,104720.0,104710.0,0.89228905]
[1748857444142,1.27233374,104720.0,104710.0,0.89428905]
[1748857444347,1.27333374,104720.0,104710.0,0.93278905]
[1748857444844,1.34965297,104720.0,104710.0,0.96718905]
[1748857445038,1.34965297,104720.0,104710.0,0.40786905]
[1748857445234,1.34965297,104720.0,104710.0,0.96718905]
[1748857445949,1.04727086,104720.0,104710.0,0.55365586]
[1748857446141,1.12824693,104720.0,104710.0,1.14737586]
[1748857446339,0.3961,104720.0,104710.0,1.15668956]
[1748857446536,0.3961,104720.0,104710.0,0.59736956]
[1748857446845,1.23810134,104720.0,104710.0,0.80152795]
[1748857447038,1.38505297,104720.0,104710.0,0.61041445]
[1748857447234,1.38505297,104720.0,104710.0,0.05141445]
[1748857447445,1.38505297,104720.0,104710.0,0.80156795]
[1748857447641,1.38505297,104720.0,104710.0,0.23952795]
[1748857447951,1.38505297,104720.0,104710.0,0.79860795]
[1748857448250,1.38505297,104720.0,104710.0,0.79856795]
[1748857449155,1.38505297,104720.0,104710.0,0.79656795]
[1748857449349,1.38605297,104720.0,104710.0,0.79656795]
[1748857449855,1.23910134,104720.0,104710.0,0.79656795]
[1748857450346,1.23910134,104720.0,104710.0,0.23752795]
[1748857450553,1.23910134,104720.0,104710.0,0.79612795]
[1748857450751,1.39559267,104720.0,104710.0,0.04621445]
[1748857450951,1.39559267,104720.0,104710.0,0.60525445]
[1748857451555,1.39559267,104720.0,104710.0,0.60505445]
[1748857451755,1.39559267,104720.0,104710.0,0.60525445]
[1748857452245,1.39559267,104720.0,104710.0,0.04621445]
[1748857452441,1.39559267,104720.0,104710.0,0.60521445]
[1748857452646,1.39559267,104720.0,104710.0,0.15481445]
[1748857452849,1.49559267,104720.0,104710.0,0.60521445]
[1748857453152,1.39559267,104720.0,104710.0,0.60501445]
[1748857453344,1.39559267,104720.0,104710.0,0.60521445]
[1748857454948,1.38605297,104720.0,104710.0,0.60521445]
[1748857455150,1.38605297,104720.0,104710.0,0.79612795]
[1748857455349,1.38605297,104720.0,104710.0,0.83052795]
[1748857455551,1.38605297,104720.0,104710.0,0.86272795]
[1748857458858,1.69605297,104720.0,104710.0,0.86272795]
[1748857459651,1.69605297,104720.0,104710.0,0.30372795]
[1748857460158,1.69605297,104720.0,104710.0,0.86264795]
[1748857460360,1.69605297,104720.0,104710.0,0.11281445]
[1748857460659,1.69605297,104720.0,104710.0,0.67173445]
[1748857460961,1.69605297,104720.0,104710.0,0.86264795]
[1748857463057,1.69605297,104720.0,104710.0,0.67173445]
[1748857463454,1.79605297,104720.0,104710.0,0.67173445]
[1748857463656,1.69605297,104720.0,104710.0,0.67173445]
[1748857463847,1.69605297,104720.0,104710.0,0.86264795]
[1748857464655,1.69605297,104720.0,104710.0,0.30372795]
[1748857464960,1.69605297,104720.0,104710.0,0.67169445]
[1748857465159,1.69605297,104720.0,104710.0,0.67149445]
[1748857465359,1.69605297,104720.0,104710.0,0.67169445]
[1748857465858,1.54910134,104720.0,104710.0,0.67169445]
[1748857466159,1.54910134,104720.0,104710.0,0.22141445]
[1748857466352,1.54910134,104720.0,104710.0,0.04621445]
[1748857466553,1.75485695,104720.0,104710.0,0.60485445]
[1748857466760,1.75485695,104720.0,104710.0,0.60505445]
[1748857467463,1.85485695,104720.0,104710.0,0.15481445]
[1748857467654,1.85485695,104720.0,104710.0,0.60501445]
[1748857467854,1.64910134,104720.0,104710.0,0.60501445]
[1748857468160,1.85485695,104720.0,104710.0,0.60501445]
[1748857469254,1.85485695,104720.0,104710.0,0.04621445]
[1748857469468,1.85485695,104720.0,104710.0,0.60501445]
[1748857470049,1.85485695,104720.0,104710.0,0.04621445]
[1748857470360,1.85485695,104720.0,104710.0,0.60497445]
[1748857470562,1.85485695,104720.0,104710.0,0.60477445]
[1748857470763,1.85485695,104720.0,104710.0,0.60497445]
[1748857472567,1.85485695,104720.0,104710.0,0.60493445]
[1748857472865,1.75485695,104720.0,104710.0,0.60493445]
[1748857473157,1.75485695,104720.0,104710.0,0.63633445]
[1748857473362,1.75485695,104720.0,104710.0,0.85974755]
[1748857473363,1.60907014,104720.0,104710.0,0.85974755]
[1748857473565,1.75485695,104720.0,104710.0,0.85974755]
[1748857474269,1.75485695,104720.0,104710.0,0.66883445]
[1748857474466,1.75485695,104720.0,104710.0,0.85974765]
[1748857475671,1.57377014,104720.0,104710.0,0.85974765]
[1748857475861,1.71955695,104720.0,104710.0,0.89024765]
[1748857477053,1.64323772,104720.0,104710.0,0.89024765]
[1748857477258,1.71955695,104720.0,104710.0,0.89024765]
[1748857477454,1.51380134,104720.0,104710.0,0.89024765]
[1748857481869,1.66207475,104720.0,104710.0,0.8889241]
[1748857482067,1.80786156,104720.0,104710.0,0.8889241]
[1748857482259,1.66207475,104720.0,104710.0,0.8889241]
[1748857482455,1.80786156,104720.0,104710.0,0.8889241]
[1748857483762,1.80786156,104720.0,104710.0,0.88902201]
[1748857484971,1.7504024,104720.0,104710.0,0.88902201]
[1748857486168,1.7504024,104720.0,104710.0,0.33030201]
[1748857486572,1.7504024,104720.0,104710.0,0.88850201]
[1748857491369,1.54430134,104720.0,104710.0,0.88850201]
[1748857492878,1.54430134,104720.0,104710.0,0.43862201]
[1748857493072,1.54430134,104720.0,104710.0,0.88838201]
[1748857493273,1.7504024,104720.0,104710.0,0.88838201]
[1748857495678,1.7504024,104720.0,104710.0,0.88834201]
[1748857499984,1.7504024,104720.0,104710.0,0.24770881]
[1748857500176,1.7504024,104720.0,104710.0,0.88826191]
[1748857500376,1.60461559,104720.0,104710.0,0.88806191]
[1748857500783,1.8504024,104720.0,104710.0,0.15310881]
[1748857500980,1.8504024,104720.0,104700.0,0.0143124]
[1748857500981,0.1909131,104710.0,104700.0,0.0143124]
[1748857501184,1.41400718,104710.0,104700.0,0.7632037]
[1748857501380,1.41400718,104710.0,104700.0,0.5722724]
[1748857501978,1.41500718,104710.0,104700.0,0.0163124]
[1748857502284,1.41500718,104710.0,104700.0,0.5742724]
[1748857502586,1.41700718,104710.0,104700.0,0.5742324]
[1748857502977,1.51700718,104710.0,104700.0,0.5742324]
[1748857503186,1.41700718,104710.0,104700.0,0.5742324]
[1748857503489,1.51800718,104710.0,104700.0,0.5722324]
[1748857503788,1.51800718,104710.0,104700.0,0.5724324]
[1748857504385,1.51800718,104710.0,104700.0,0.0145124]
[1748857504586,1.51800718,104710.0,104700.0,0.5724324]
[1748857504982,1.37222037,104710.0,104700.0,0.5724324]
[1748857505186,1.41800718,104710.0,104700.0,0.5724324]
[1748857505383,1.21201914,104710.0,104700.0,0.5724324]
[1748857505987,1.21201914,104710.0,104700.0,0.5723924]
[1748857506689,1.31201914,104710.0,104700.0,0.5723924]
[1748857507182,1.31201914,104710.0,104700.0,0.5721124]
[1748857508588,0.1909313,104700.0,104690.0,1.08368]
[1748857508789,0.1909496,104690.0,104680.0,0.19306944]
[1748857508991,1.03146883,104690.0,104680.0,0.25826944]
[1748857509184,0.9232496,104690.0,104680.0,0.99475625]
[1748857509381,0.9232496,104690.0,104680.0,0.99495625]
[1748857509888,0.9232496,104690.0,104680.0,0.84916944]
[1748857510090,0.9232496,104690.0,104680.0,0.27856944]
[1748857510394,0.9242496,104690.0,104680.0,0.83916944]
[1748857510784,0.9242496,104690.0,104680.0,0.38964944]
[1748857510997,1.03156883,104690.0,104680.0,0.80606944]
[1748857511288,1.20977156,104690.0,104680.0,0.80606944]
[1748857511793,1.35555837,104690.0,104680.0,0.80606944]
[1748857512388,1.35555837,104690.0,104680.0,0.0032]
[1748857512595,0.07631923,104670.0,104650.0,0.00210225]
[1748857512778,0.1910591,104630.0,104620.0,0.00210285]
[1748857513088,0.0477706,104620.0,104600.0,0.18402964]
[1748857513289,0.1911139,104600.0,104590.0,0.03248113]
[1748857513491,0.1911139,104600.0,104580.0,0.22363153]
[1748857513492,0.1911321,104590.0,104580.0,0.22363153]
[1748857513692,0.83833814,104590.0,104580.0,0.22363153]
[1748857513878,0.83833814,104590.0,104580.0,0.1911504]
[1748857513879,0.86221923,104590.0,104580.0,0.1911504]
[1748857514077,0.7527,104590.0,104580.0,0.7306704]
[1748857514278,0.3919,104590.0,104580.0,0.85984235]
[1748857514583,0.07770301,104600.0,104590.0,0.1911321]
[1748857514884,0.03757758,104600.0,104590.0,1.11702691]
[1748857515079,0.002,104610.0,104600.0,0.1911129]
[1748857515278,0.002,104610.0,104600.0,1.6230037]
[1748857515477,0.1700001,104610.0,104600.0,1.0055889]
[1748857515684,1e-07,104610.0,104600.0,1.8786843]
[1748857515879,0.3800001,104610.0,104600.0,1.8786843]
[1748857516090,0.076058,104620.0,104610.0,0.1910934]
[1748857516385,0.002,104640.0,104630.0,0.1910572]
[1748857516588,0.002,104640.0,104600.0,0.0032]
[1748857516589,0.26739473,104620.0,104600.0,0.0032]
[1748857516793,0.26739473,104620.0,104610.0,0.2231839]
[1748857516794,1.1120717,104620.0,104610.0,0.2231839]
[1748857516982,1.1120717,104620.0,104610.0,0.0321]
[1748857517184,1.1754717,104620.0,104610.0,0.7809138]
[1748857517384,1.09713893,104620.0,104610.0,0.62222]
[1748857517683,1.45793893,104620.0,104610.0,0.59094]
[1748857518083,1.45793893,104620.0,104610.0,0.2243938]
[1748857518283,1.45793893,104620.0,104610.0,0.59106]
[1748857518488,1.45793893,104620.0,104610.0,0.2243938]
[1748857518683,1.45893893,104620.0,104610.0,0.14138]
[1748857519091,1.45893893,104620.0,104610.0,0.3324738]
[1748857519490,1.45893893,104620.0,104610.0,0.2243938]
[1748857519686,1.45893893,104620.0,104610.0,0.0333]
[1748857519886,1.45893893,104620.0,104610.0,0.55912]
[1748857520092,1.45893893,104620.0,104610.0,0.1920938]
[1748857520295,1.45893893,104620.0,104610.0,0.7831338]
[1748857520589,1.45893893,104620.0,104610.0,0.7780938]
[1748857520791,1.45893893,104620.0,104610.0,0.591]
[1748857521097,1.45893893,104620.0,104610.0,0.0332]
[1748857521393,1.45893893,104620.0,104610.0,0.59096]
[1748857521789,1.45893893,104620.0,104610.0,0.7820535]
[1748857522093,1.45893893,104620.0,104610.0,0.9419689]
[1748857522094,1.0646,104620.0,104610.0,0.9419689]
[1748857522286,1.0646,104620.0,104610.0,0.9722689]
[1748857522594,1.2556753,104620.0,104610.0,0.9722689]
[1748857522794,0.6718,104620.0,104610.0,0.9722689]
[1748857523194,0.001,104620.0,104610.0,0.97089689]
[1748857523390,0.001,104620.0,104610.0,1.52893689]
[1748857523694,0.001,104620.0,104610.0,1.16813689]
[1748857523695,0.311,104620.0,104610.0,1.16813689]
[1748857523881,0.001,104620.0,104610.0,1.16813689]
[1748857524085,0.001,104620.0,104610.0,1.52893689]
[1748857524488,0.001,104620.0,104610.0,0.87089689]
[1748857524689,0.001,104620.0,104610.0,1.43889689]
[1748857524888,0.001,104620.0,104610.0,1.51361325]
[1748857525291,0.00014301,104630.0,104620.0,0.1910752]
[1748857525487,0.00014301,104630.0,104620.0,0.8048906]
[1748857525488,0.09014301,104630.0,104620.0,0.8048906]
[1748857525797,0.53119991,104630.0,104620.0,0.4878752]
[1748857525995,0.53119991,104630.0,104620.0,0.2841752]
[1748857526188,0.89199991,104630.0,104620.0,0.8423352]
[1748857526387,0.92599991,104630.0,104620.0,1.0034506]
[1748857526597,0.56519991,104630.0,104620.0,1.0032506]
[1748857526797,0.37414301,104630.0,104620.0,1.0034506]
[1748857526992,0.12314301,104630.0,104620.0,1.0034506]
[1748857527193,0.54419991,104630.0,104620.0,0.8435352]
[1748857527502,0.54419991,104630.0,104620.0,0.8442952]
[1748857527503,0.90699991,104630.0,104620.0,0.8442952]
[1748857527694,0.93799991,104630.0,104620.0,0.8440952]
[1748857527890,0.93799991,104630.0,104620.0,0.8442952]
[1748857528086,0.93799991,104630.0,104620.0,0.8459752]
[1748857528300,0.93799991,104630.0,104620.0,1.0059306]
[1748857528896,0.93799991,104630.0,104620.0,0.8460152]
[1748857529102,0.96899991,104630.0,104620.0,0.8461752]
[1748857529503,0.96899991,104630.0,104620.0,0.8459752]
[1748857529697,0.96899991,104630.0,104620.0,0.8461352]
[1748857529900,0.96899991,104630.0,104620.0,0.0642]
[1748857530115,1.20523454,104630.0,104620.0,0.064]
[1748857530301,1.20523454,104630.0,104620.0,0.0642]
[1748857530502,1.04531914,104630.0,104620.0,0.7528752]
[1748857530799,1.20523454,104630.0,104620.0,0.7528752]
[1748857531000,1.20523454,104630.0,104620.0,0.7529152]
[1748857531595,1.04531914,104630.0,104620.0,0.56184]
[1748857531810,1.04531914,104630.0,104620.0,0.7529152]
[1748857532104,1.04531914,104630.0,104620.0,0.7833152]
[1748857532294,1.01431914,104630.0,104620.0,0.8473152]
[1748857532499,0.93799991,104630.0,104620.0,1.0072306]
[1748857532701,0.93799991,104630.0,104620.0,0.8473152]
[1748857533697,0.93399991,104630.0,104620.0,0.8473152]
[1748857533893,0.93399991,104630.0,104620.0,0.8483152]
[1748857534306,0.93399991,104630.0,104620.0,0.8473152]
[1748857534505,0.74294301,104630.0,104620.0,1.0072306]
[1748857534807,0.38214301,104630.0,104620.0,1.3680306]
[1748857534995,0.35114301,104630.0,104620.0,1.3680306]
[1748857535195,0.35114301,104630.0,104620.0,1.4836106]
[1748857535196,0.09114301,104630.0,104620.0,1.4836106]
[1748857535597,0.09114301,104630.0,104620.0,1.4636106]
[1748857536113,0.002,104640.0,104630.0,0.191057]
[1748857536414,0.002,104640.0,104630.0,0.8718444]
[1748857537504,0.27042131,104650.0,104630.0,0.6807874]
[1748857537505,0.00014301,104650.0,104630.0,0.6807874]
[1748857537710,0.00014301,104650.0,104640.0,2.4545541]
[1748857537711,0.29014301,104650.0,104640.0,2.4545541]
[1748857538101,0.29014301,104650.0,104640.0,2.5501141]